[Event "Prague Festival Future 2020"]
[Site "Prague"]
[Date "2020.02.16"]
[Round "5.1"]
[White "Brozka, Karel"]
[Black "Nadzamova, Viktoria"]
[Result "1/2-1/2"]
[ECO "E21"]
[WhiteElo "2045"]
[BlackElo "1960"]
[Annotator "ChessBase"]
[PlyCount "120"]
[EventDate "2020.02.12"]
[EventType "tourn"]
[EventCountry "CZE"]
[SourceTitle "playchess.com"]
[Source "ChessBase"]
[SourceQuality "1"]
[TimeControl "40/5400+30:1800+30"]

1. d4 Nf6 {[%emt 0:00:00]} 2. Nf3 {[%emt 0:00:00]} e6 {[%emt 0:00:00]} 3. c4 {[%emt 0:00:00]} b6 {[%emt 0:00:00]} 4. Nc3 {[%emt 0:00:00]} Bb4 {[%emt 0:00:00]} 5. Bg5 {[%emt 0:00:21]} Bb7 {[%emt 0:00:02]} 6. e3 {[%emt 0:00:12]} h6 {[%emt 0:00:06]} 7. Bh4 {[%emt 0:00:17]} g5 {[%emt 0:00:18]} 8. Bg3 {[%emt 0:00:06]} Ne4 {[%emt 0:00:06]} 9. Qc2 {[%emt 0:00:40]} Bxc3+ {[%emt 0:00:42]} 10. bxc3 {[%emt 0:00:08]} Nxg3 {[%emt 0:00:05]} 11. fxg3 {[%emt 0:06:38]} d6 {[%emt 0:03:33]} 12. Bd3 {[%emt 0:04:36]} Nd7 {[%emt 0:02:22]} 13. O-O {[%emt 0:02:00]} Qe7 {[%emt 0:02:01]} 14. Be4 {[%emt 0:06:09]} Bxe4 {[%emt 0:02:31]} 15. Qxe4 {[%emt 0:00:02]} O-O {[%emt 0:00:10]} 16. Qc6 {[%emt 0:04:22]} Nf6 {[%emt 0:03:09]} 17. Rae1 {[%emt 0:05:30]} Qd7 {[%emt 0:05:24]} 18. Qxd7 {[%emt 0:07:19]} Nxd7 {[%emt 0:00:07]} 19. Nd2 {[%emt 0:02:05]} e5 {[%emt 0:18:47]} 20. Rf5 {[%emt 0:11:34]} f6 {[%emt 0:01:23]} 21. g4 {[%emt 0:09:24]} Kg7 {[%emt 0:03:14]} 22. Ne4 {[%emt 0:03:59]} Rae8 {[%emt 0:02:51]} 23. Ng3 {[%emt 0:02:30]} e4 {[%emt 0:06:45]} 24. Rf2 {[%emt 0:05:28]} Kg6 {[%emt 0:04:18]} 25. Nf5 {[%emt 0:00:50]} Nb8 {[%emt 0:03:10]} 26. Ref1 {[%emt 0:08:07]} Nd7 {[%emt 0:02:35]} 27. Rb1 {[%emt 0:01:01]} Rf7 {[%emt 0:06:38]} 28. h3 {[%emt 0:04:17]} Rff8 {[%emt 0:02:31]} 29. Rb4 {[%emt 0:00:32]} a5 {[%emt 0:06:49]} 30. Rb5 {[%emt 0:01:12]} Re6 {[%emt 0:00:50]} 31. Rb1 {[%emt 0:02:21]} Rc8 {[%emt 0:02:24]} 32. Rc2 {[%emt 0:01:12]} Ree8 {[%emt 0:03:14]} 33. Rb5 {[%emt 0:01:31]} Re6 {[%emt 0:01:35]} 34. Rbb2 {[%emt 0:03:00]} Ree8 {[%emt 0:01:35]} 35. a4 {[%emt 0:00:31]} Rcd8 {[%emt 0:06:18]} 36. Rf2 {[%emt 0:01:10]} Re6 {[%emt 0:01:58]} 37. Rfd2 {[%emt 0:05:05]} Ree8 {[%emt 0:00:26]} 38. Rb5 {[%emt 0:01:03]} Rb8 {[%emt 0:00:48]} 39. Rb1 {[%emt 0:01:30]} Rbd8 {[%emt 0:00:27]} 40. Kf2 {[%emt 0:00:00]} Nb8 {[%emt 0:00:00]} 41. Kg1 {[%emt 0:01:57]} Nd7 {[%emt 0:02:16]} 42. g3 {[%emt 0:02:03]} Re6 {[%emt 0:07:09]} 43. Rh2 {[%emt 0:04:05]} Rh8 {[%emt 0:03:48]} 44. Kg2 {[%emt 0:02:01]} Ree8 {[%emt 0:00:49]} 45. Rbh1 {[%emt 0:02:04]} h5 {[%emt 0:00:29]} 46. Rf1 {[%emt 0:02:10]} hxg4 {[%emt 0:00:24]} 47. hxg4 {[%emt 0:00:01]} Rxh2+ {[%emt 0:00:09]} 48. Kxh2 {[%emt 0:00:09]} Rh8+ {[%emt 0:01:00]} 49. Kg2 {[%emt 0:00:08]} Kf7 {[%emt 0:00:11]} 50. Rb1 {[%emt 0:01:10]} Ke6 {[%emt 0:02:02]} 51. Ng7+ {[%emt 0:00:16]} Kf7 {[%emt 0:00:36]} 52. Nf5 {[%emt 0:00:01]} Rh7 {[%emt 0:00:18]} 53. Rh1 {[%emt 0:10:58]} Rxh1 {[%emt 0:01:29]} 54. Kxh1 {[%emt 0:00:01]} Nb8 {[%emt 0:01:40]} 55. Kg2 {[%emt 0:00:19]} Nc6 {[%emt 0:01:17]} 56. Kf2 {[%emt 0:00:28]} Nd8 {[%emt 0:01:44]} 57. Ke2 {[%emt 0:01:04]} Ke6 {[%emt 0:01:31]} 58. Ng7+ {[%emt 0:00:29]} Kd7 {[%emt 0:00:38]} 59. Nh5 {[%emt 0:01:02]} Ke7 {[%emt 0:00:31]} 60. Ng7 {[%emt 0:00:05]} Kf7 {[%emt 0:05:58]} 1/2-1/2

[Event "Prague Festival Future 2020"]
[Site "Prague"]
[Date "2020.02.16"]
[Round "5.2"]
[White "Nemec, Jachym"]
[Black "Aydin, Gulenay"]
[Result "1-0"]
[ECO "B76"]
[WhiteElo "2069"]
[BlackElo "1964"]
[Annotator "ChessBase"]
[PlyCount "101"]
[EventDate "2020.02.12"]
[EventType "tourn"]
[EventCountry "CZE"]
[SourceTitle "playchess.com"]
[Source "ChessBase"]
[SourceQuality "1"]
[TimeControl "40/5400+30:1800+30"]

1. e4 {[%emt 0:00:00]} c5 {[%emt 0:00:00]} 2. Nf3 {[%emt 0:00:00]} d6 {[%emt 0:00:00]} 3. d4 {[%emt 0:00:01]} cxd4 {[%emt 0:00:00]} 4. Nxd4 {[%emt 0:00:10]} Nf6 {[%emt 0:00:00]} 5. Nc3 {[%emt 0:00:10]} g6 {[%emt 0:00:03]} 6. Be3 {[%emt 0:00:10]} Bg7 {[%emt 0:00:07]} 7. f3 {[%emt 0:00:20]} O-O {[%emt 0:00:30]} 8. Qd2 {[%emt 0:00:13]} Nc6 {[%emt 0:00:07]} 9. O-O-O {[%emt 0:00:11]} Nxd4 {[%emt 0:01:41]} 10. Bxd4 {[%emt 0:00:10]} Be6 {[%emt 0:00:38]} 11. Kb1 {[%emt 0:00:07]} a6 {[%emt 0:04:38]} 12. g4 {[%emt 0:03:34]} Qc7 {[%emt 0:13:28]} 13. h4 {[%emt 0:02:52]} Rfc8 {[%emt 0:11:01]} 14. h5 {[%emt 0:21:08]} Qa5 {[%emt 0:05:57]} 15. a3 {[%emt 0:00:46]} b5 {[%emt 0:12:03]} 16. hxg6 {[%emt 0:09:49]} fxg6 {[%emt 0:03:07]} 17. Qg5 {[%emt 0:02:13]} Rab8 {[%emt 0:15:56]} 18. Bd3 {[%emt 0:02:51]} Bf7 {[%emt 0:09:51]} 19. f4 {[%emt 0:13:16]} e5 {[%emt 0:08:20]} 20. fxe5 {[%emt 0:02:31]} b4 {[%emt 0:00:07]} 21. Nd5 {[%emt 0:03:47]} Nxd5 {[%emt 0:01:39]} 22. exd5 {[%emt 0:00:24]} Qxd5 {[%emt 0:01:01]} 23. Bf5 {[%emt 0:17:02]} dxe5 {[%emt 0:06:29]} 24. Bxc8 {[%emt 0:05:48]} Rxc8 {[%emt 0:00:13]} 25. Bxe5 {[%emt 0:00:30]} Qa2+ {[%emt 0:02:15]} 26. Kc1 {[%emt 0:00:05]} Bxe5 {[%emt 0:00:03]} 27. Qxe5 {[%emt 0:03:08]} bxa3 {[%emt 0:01:16]} 28. Qf6 {[%emt 0:03:11]} axb2+ {[%emt 0:01:01]} 29. Qxb2 {[%emt 0:00:12]} Qc4 {[%emt 0:00:16]} 30. Rxh7 {[%emt 0:01:42]} Qxc2+ {[%emt 0:02:21]} 31. Qxc2 {[%emt 0:00:05]} Rxc2+ {[%emt 0:00:03]} 32. Kxc2 {[%emt 0:00:05]} Kxh7 {[%emt 0:00:02]} 33. Rd7 {[%emt 0:02:12]} Kg7 {[%emt 0:01:21]} 34. g5 {[%emt 0:00:08]} Kf8 {[%emt 0:00:50]} 35. Rd6 {[%emt 0:02:07]} a5 {[%emt 0:00:22]} 36. Ra6 {[%emt 0:00:10]} Ke7 {[%emt 0:00:15]} 37. Rxa5 {[%emt 0:00:18]} Ke6 {[%emt 0:00:47]} 38. Kd3 {[%emt 0:00:52]} Be8 {[%emt 0:00:34]} 39. Ke4 {[%emt 0:01:31]} Bc6+ {[%emt 0:00:28]} 40. Kf4 {[%emt 0:00:00]} Bb7 {[%emt 0:00:00]} 41. Rb5 {[%emt 0:00:19]} Bg2 {[%emt 0:02:37]} 42. Rb6+ {[%emt 0:00:24]} Kf7 {[%emt 0:00:10]} 43. Ke5 {[%emt 0:00:07]} Bh3 {[%emt 0:00:09]} 44. Rb7+ {[%emt 0:00:38]} Kg8 {[%emt 0:04:13]} 45. Kf6 {[%emt 0:00:04]} Bf5 {[%emt 0:00:05]} 46. Rg7+ {[%emt 0:00:08]} Kh8 {[%emt 0:00:16]} 47. Rxg6 {[%emt 0:00:16]} Bxg6 {[%emt 0:00:08]} 48. Kxg6 {[%emt 0:00:05]} Kg8 {[%emt 0:00:02]} 49. Kf6 {[%emt 0:00:05]} Kf8 {[%emt 0:00:13]} 50. g6 {[%emt 0:00:05]} Kg8 {[%emt 0:00:05]} 51. g7 {[%emt 0:00:03]} 1-0

[Event "Prague Festival Future 2020"]
[Site "Prague"]
[Date "2020.02.16"]
[Round "5.4"]
[White "Kanov, Nikola"]
[Black "Chinguun Bayaraa"]
[Result "1-0"]
[ECO "B90"]
[WhiteElo "2129"]
[BlackElo "2049"]
[Annotator "ChessBase"]
[PlyCount "81"]
[EventDate "2020.02.12"]
[EventType "tourn"]
[EventCountry "CZE"]
[SourceTitle "playchess.com"]
[Source "ChessBase"]
[SourceQuality "1"]
[TimeControl "40/5400+30:1800+30"]

1. e4 {[%emt 0:00:00]} c5 {[%emt 0:00:08]} 2. Nf3 {[%emt 0:00:00]} d6 {[%emt 0:00:05]} 3. d4 {[%emt 0:00:00]} cxd4 {[%emt 0:00:07]} 4. Nxd4 {[%emt 0:00:00]} Nf6 {[%emt 0:00:04]} 5. Nc3 {[%emt 0:00:07]} a6 {[%emt 0:00:05]} 6. Be3 {[%emt 0:00:16]} e5 {[%emt 0:00:06]} 7. Nb3 {[%emt 0:00:08]} Be6 {[%emt 0:00:07]} 8. f3 {[%emt 0:00:11]} Be7 {[%emt 0:03:05]} 9. Qd2 {[%emt 0:00:20]} O-O {[%emt 0:01:17]} 10. O-O-O {[%emt 0:00:20]} Nbd7 {[%emt 0:04:08]} 11. g4 {[%emt 0:00:15]} b5 {[%emt 0:00:08]} 12. g5 {[%emt 0:00:10]} b4 {[%emt 0:00:05]} 13. Ne2 {[%emt 0:00:12]} Ne8 {[%emt 0:00:08]} 14. h4 {[%emt 0:05:46]} a5 {[%emt 0:01:15]} 15. Kb1 {[%emt 0:00:19]} Qc7 {[%emt 0:04:57]} 16. Bh3 {[%emt 0:04:51]} Nb6 {[%emt 0:01:06]} 17. Bxb6 {[%emt 0:04:41]} Qxb6 {[%emt 0:10:46]} 18. g6 {[%emt 0:15:04]} h6 {[%emt 0:16:59]} 19. gxf7+ {[%emt 0:02:20]} Bxf7 {[%emt 0:00:21]} 20. Rhg1 {[%emt 0:03:04]} Kh8 {[%emt 0:00:30]} 21. Ng3 {[%emt 0:02:06]} a4 {[%emt 0:13:53]} 22. Nc1 {[%emt 0:02:16]} b3 {[%emt 0:03:28]} 23. Nf5 {[%emt 0:08:48]} Rb8 {[%emt 0:17:16]} 24. cxb3 {[%emt 0:01:16]} Bf6 {[%emt 0:01:18]} 25. Nxh6 {[%emt 0:10:13]} axb3 {[%emt 0:04:15]} 26. Nxf7+ {[%emt 0:01:02]} Rxf7 {[%emt 0:00:17]} 27. Nxb3 {[%emt 0:02:42]} Ra7 {[%emt 0:01:15]} 28. Nc1 {[%emt 0:04:46]} d5 {[%emt 0:02:48]} 29. Rg2 {[%emt 0:01:11]} d4 {[%emt 0:00:56]} 30. Rdg1 {[%emt 0:02:21]} Nd6 {[%emt 0:02:22]} 31. Be6 {[%emt 0:08:46]} Nb7 {[%emt 0:06:40]} 32. Rxg7 {[%emt 0:04:32]} Bxg7 {[%emt 0:00:21]} 33. Qg5 {[%emt 0:00:02]} Qxb2+ {[%emt 0:02:21]} 34. Kxb2 {[%emt 0:00:04]} Nd8+ {[%emt 0:00:06]} 35. Bb3 {[%emt 0:00:06]} Ne6 {[%emt 0:00:29]} 36. Qh5+ {[%emt 0:00:17]} Kg8 {[%emt 0:00:07]} 37. Qg6 {[%emt 0:00:07]} Re7 {[%emt 0:00:29]} 38. Ka1 {[%emt 0:00:40]} Rb6 {[%emt 0:00:13]} 39. h5 {[%emt 0:00:19]} Kf8 {[%emt 0:01:33]} 40. h6 {[%emt 0:00:00]} Rc6 {[%emt 0:00:00]} 41. Bxe6 {[%emt 0:00:34]} 1-0

[Event "Prague Festival Future 2020"]
[Site "Prague"]
[Date "2020.02.16"]
[Round "5.5"]
[White "Finek, Vaclav"]
[Black "Klimkowski, Jan"]
[Result "1-0"]
[ECO "B53"]
[WhiteElo "2220"]
[BlackElo "2229"]
[Annotator "ChessBase"]
[PlyCount "69"]
[EventDate "2020.02.12"]
[EventType "tourn"]
[EventCountry "CZE"]
[SourceTitle "playchess.com"]
[Source "ChessBase"]
[SourceQuality "1"]
[TimeControl "40/5400+30:1800+30"]

1. e4 {[%emt 0:00:00]} c5 {[%emt 0:00:00]} 2. Nf3 {[%emt 0:00:00]} d6 {[%emt 0:00:00]} 3. d4 {[%emt 0:00:00]} cxd4 {[%emt 0:00:00]} 4. Qxd4 {[%emt 0:00:00]} Nc6 {[%emt 0:00:00]} 5. Bb5 {[%emt 0:00:00]} a6 {[%emt 0:00:10]} 6. Bxc6+ {[%emt 0:00:00]} bxc6 {[%emt 0:00:04]} 7. Nc3 {[%emt 0:00:41]} e5 {[%emt 0:01:30]} 8. Qd3 {[%emt 0:00:34]} Nf6 {[%emt 0:01:24]} 9. Bg5 {[%emt 0:00:57]} Be6 {[%emt 0:01:11]} 10. O-O {[%emt 0:03:44]} Be7 {[%emt 0:01:11]} 11. Rad1 {[%emt 0:03:55]} O-O {[%emt 0:01:40]} 12. Bxf6 {[%emt 0:02:37]} gxf6 {[%emt 0:01:11]} 13. Nh4 {[%emt 0:04:09]} Qb6 {[%emt 0:02:59]} 14. Ne2 {[%emt 0:07:01]} Kh8 {[%emt 0:02:59]} 15. Ng3 {[%emt 0:03:15]} Rg8 {[%emt 0:08:12]} 16. Nhf5 {[%emt 0:05:57]} Bf8 {[%emt 0:00:20]} 17. Nxd6 {[%emt 0:20:57]} Qxb2 {[%emt 0:10:16]} 18. Qf3 {[%emt 0:07:35]} Rg6 {[%emt 0:04:12]} 19. Ngf5 {[%emt 0:02:44]} Qb4 {[%emt 0:08:52]} 20. Qe3 {[%emt 0:04:27]} Bxd6 {[%emt 0:15:35]} 21. Nxd6 {[%emt 0:00:14]} Qa5 {[%emt 0:09:23]} 22. g3 {[%emt 0:07:14]} Rgg8 {[%emt 0:04:21]} 23. f4 {[%emt 0:02:18]} Rgb8 {[%emt 0:06:16]} 24. f5 {[%emt 0:02:16]} Bxa2 {[%emt 0:02:18]} 25. Qh6 {[%emt 0:00:49]} Qc5+ {[%emt 0:01:07]} 26. Rf2 {[%emt 0:01:20]} Rb2 {[%emt 0:01:49]} 27. Qxf6+ {[%emt 0:00:06]} Kg8 {[%emt 0:00:05]} 28. Qg5+ {[%emt 0:02:11]} Kh8 {[%emt 0:00:09]} 29. f6 {[%emt 0:03:14]} Rg8 {[%emt 0:00:35]} 30. Nxf7+ {[%emt 0:01:33]} Bxf7 {[%emt 0:00:26]} 31. Rd8 {[%emt 0:00:06]} Rb1+ {[%emt 0:07:59]} 32. Kg2 {[%emt 0:00:45]} Bg6 {[%emt 0:01:13]} 33. Rxg8+ {[%emt 0:00:13]} Kxg8 {[%emt 0:00:24]} 34. f7+ {[%emt 0:00:09]} Kg7 {[%emt 0:00:11]} 35. Qf6+ {[%emt 0:00:07]} 1-0

[Event "Prague Festival Future 2020"]
[Site "Prague"]
[Date "2020.02.19"]
[Round "7.1"]
[White "Nemec, Jachym"]
[Black "Brozka, Karel"]
[Result "1-0"]
[ECO "C03"]
[WhiteElo "2069"]
[BlackElo "2045"]
[Annotator "NA"]
[PlyCount "57"]
[EventDate "2020.02.12"]
[EventType "tourn"]
[EventCountry "CZE"]
[SourceTitle "playchess.com"]
[Source "ChessBase"]
[SourceQuality "1"]
[TimeControl "40/5400+30:1800+30"]

1. e4 {[%emt 0:00:00]} e6 {[%emt 0:00:00]} 2. d4 {[%emt 0:00:00]} d5 {[%emt 0:00:00]} 3. Nd2 {[%emt 0:01:31]} Be7 {[%emt 0:00:47]} 4. Bd3 {[%emt 0:02:11]} c5 {[%emt 0:02:10]} 5. dxc5 {[%emt 0:00:44]} Bxc5 {[%emt 0:04:55]} 6. exd5 {[%emt 0:01:41]} exd5 {[%emt 0:02:40]} 7. Ngf3 {[%emt 0:00:56]} Nf6 {[%emt 0:00:35]} 8. O-O {[%emt 0:00:15]} O-O {[%emt 0:00:08]} 9. Nb3 {[%emt 0:00:52]} Bd6 {[%emt 0:02:07]} 10. Bg5 {[%emt 0:04:22]} Bg4 {[%emt 0:01:21]} 11. c3 {[%emt 0:03:07]} Nc6 {[%emt 0:06:22]} 12. Bc2 {[%emt 0:03:31]} Ne5 {[%emt 0:10:32]} 13. Nbd4 {[%emt 0:02:53]} h6 {[%emt 0:03:34]} 14. Bh4 {[%emt 0:01:08]} g5 {[%emt 0:07:06]} 15. Bg3 {[%emt 0:01:07]} Ne4 {[%emt 0:04:03]} 16. Bxe5 {[%emt 0:04:39]} Bxe5 {[%emt 0:00:28]} 17. Qd3 {[%emt 0:19:54]} Bg7 {[%emt 0:10:03]} 18. Nd2 {[%emt 0:09:51]} Bh5 {[%emt 0:12:44]} 19. Nxe4 {[%emt 0:08:31]} dxe4 {[%emt 0:01:08]} 20. Qxe4 {[%emt 0:00:19]} Bg6 {[%emt 0:00:52]} 21. Qxb7 {[%emt 0:02:30]} Bxc2 {[%emt 0:09:45]} 22. Nxc2 {[%emt 0:00:09]} Qd2 {[%emt 0:00:27]} 23. Ne3 {[%emt 0:03:43]} Rfb8 {[%emt 0:01:57]} 24. Qc6 {[%emt 0:01:39]} Qxb2 {[%emt 0:00:56]} 25. Nd5 {[%emt 0:01:55]} Qb7 {[%emt 0:02:12]} 26. Qc4 {[%emt 0:04:27]} Rd8 {[%emt 0:00:55]} 27. Rad1 {[%emt 0:00:22]} Rac8 {[%emt 0:00:19]} 28. Qe4 {[%emt 0:00:26]} Re8 {[%emt 0:01:20]} 29. Nf6+ {[%emt 0:00:10]} 1-0

[Event "Prague Festival Future 2020"]
[Site "Prague"]
[Date "2020.02.19"]
[Round "7.2"]
[White "Vagman, Roy"]
[Black "Nadzamova, Viktoria"]
[Result "0-1"]
[ECO "B43"]
[WhiteElo "2141"]
[BlackElo "1960"]
[Annotator "NA"]
[PlyCount "70"]
[EventDate "2020.02.12"]
[EventType "tourn"]
[EventCountry "CZE"]
[SourceTitle "playchess.com"]
[Source "ChessBase"]
[SourceQuality "1"]
[TimeControl "40/5400+30:1800+30"]

1. e4 {[%emt 0:00:00]} c5 {[%emt 0:00:00]} 2. Ne2 {[%emt 0:00:24]} e6 {[%emt 0:00:52]} 3. d4 {[%emt 0:00:46]} cxd4 {[%emt 0:00:07]} 4. Nxd4 {[%emt 0:00:16]} a6 {[%emt 0:00:11]} 5. Nc3 {[%emt 0:00:58]} Qc7 {[%emt 0:00:19]} 6. Bd3 {[%emt 0:01:16]} Nf6 {[%emt 0:00:30]} 7. Qe2 {[%emt 0:01:24]} d6 {[%emt 0:04:24]} 8. f4 {[%emt 0:01:06]} Nbd7 {[%emt 0:00:49]} 9. g4 {[%emt 0:19:26]} Nc5 {[%emt 0:05:31]} 10. g5 {[%emt 0:08:39]} Nxd3+ {[%emt 0:01:04]} 11. cxd3 {[%emt 0:00:17]} Nd7 {[%emt 0:00:57]} 12. Bd2 {[%emt 0:09:04]} Be7 {[%emt 0:04:38]} 13. Rc1 {[%emt 0:02:03]} Qd8 {[%emt 0:06:46]} 14. h4 {[%emt 0:06:25]} h6 {[%emt 0:02:50]} 15. Kf2 {[%emt 0:09:10]} Nc5 {[%emt 0:05:27]} 16. b4 {[%emt 0:04:57]} Nd7 {[%emt 0:00:48]} 17. a3 {[%emt 0:03:41]} b5 {[%emt 0:04:29]} 18. Qh5 {[%emt 0:20:27]} g6 {[%emt 0:02:40]} 19. Qf3 {[%emt 0:01:01]} Bb7 {[%emt 0:01:04]} 20. h5 {[%emt 0:00:59]} e5 {[%emt 0:05:18]} 21. Nde2 {[%emt 0:04:47]} exf4 {[%emt 0:03:42]} 22. hxg6 {[%emt 0:01:58]} fxg6 {[%emt 0:03:09]} 23. d4 {[%emt 0:01:49]} Bxg5 {[%emt 0:01:12]} 24. Nd5 {[%emt 0:00:01]} Bxd5 {[%emt 0:01:47]} 25. exd5 {[%emt 0:00:02]} O-O {[%emt 0:00:25]} 26. Rc6 {[%emt 0:01:27]} Qf6 {[%emt 0:00:42]} 27. Rhc1 {[%emt 0:00:35]} Rae8 {[%emt 0:03:09]} 28. Rxa6 {[%emt 0:00:19]} Re3 {[%emt 0:00:18]} 29. Qg4 {[%emt 0:00:39]} Rd3 {[%emt 0:02:37]} 30. Qxd7 {[%emt 0:00:32]} Rxd2 {[%emt 0:00:09]} 31. Rxd6 {[%emt 0:00:30]} Qxd4+ {[%emt 0:01:34]} 32. Kf1 {[%emt 0:00:01]} Rd1+ {[%emt 0:00:44]} 33. Rxd1 {[%emt 0:00:19]} Qxd1+ {[%emt 0:00:04]} 34. Kf2 {[%emt 0:00:38]} Bh4+ {[%emt 0:00:04]} 35. Kf3 {[%emt 0:00:54]} Qh1+ {[%emt 0:00:46]} 0-1

[Event "Prague Festival Future 2020"]
[Site "Prague"]
[Date "2020.02.19"]
[Round "7.3"]
[White "Finek, Vaclav"]
[Black "Gurel, Ediz"]
[Result "1/2-1/2"]
[ECO "A04"]
[WhiteElo "2220"]
[BlackElo "2125"]
[Annotator "NA"]
[PlyCount "94"]
[EventDate "2020.02.12"]
[EventType "tourn"]
[EventCountry "CZE"]
[SourceTitle "playchess.com"]
[Source "ChessBase"]
[SourceQuality "1"]
[TimeControl "40/5400+30:1800+30"]

1. Nf3 {[%emt 0:00:00]} c5 {[%emt 0:00:00]} 2. c4 {[%emt 0:00:00]} Nf6 {[%emt 0:00:25]} 3. g3 {[%emt 0:00:00]} b6 {[%emt 0:00:24]} 4. Bg2 {[%emt 0:00:00]} Bb7 {[%emt 0:00:03]} 5. O-O {[%emt 0:00:07]} g6 {[%emt 0:00:38]} 6. Nc3 {[%emt 0:00:27]} Bg7 {[%emt 0:00:22]} 7. Re1 {[%emt 0:00:50]} O-O {[%emt 0:03:29]} 8. e4 {[%emt 0:00:24]} d6 {[%emt 0:00:04]} 9. d4 {[%emt 0:00:15]} Nfd7 {[%emt 0:05:42]} 10. d5 {[%emt 0:01:04]} a6 {[%emt 0:01:35]} 11. Qe2 {[%emt 0:03:28]} b5 {[%emt 0:03:50]} 12. cxb5 {[%emt 0:03:48]} axb5 {[%emt 0:00:07]} 13. Qxb5 {[%emt 0:00:24]} Ba6 {[%emt 0:03:46]} 14. Qa4 {[%emt 0:00:35]} Nb6 {[%emt 0:01:03]} 15. Qc2 {[%emt 0:00:29]} N8d7 {[%emt 0:00:23]} 16. b3 {[%emt 0:03:02]} Qc7 {[%emt 0:04:29]} 17. Bb2 {[%emt 0:02:16]} Rfb8 {[%emt 0:04:26]} 18. Nd1 {[%emt 0:03:22]} Nf6 {[%emt 0:05:02]} 19. Ne3 {[%emt 0:04:44]} Qa7 {[%emt 0:07:00]} 20. Nd2 {[%emt 0:04:42]} Nfd7 {[%emt 0:06:48]} 21. Bxg7 {[%emt 0:00:45]} Kxg7 {[%emt 0:00:01]} 22. f4 {[%emt 0:01:51]} h6 {[%emt 0:11:54]} 23. Qc3+ {[%emt 0:02:38]} Kh7 {[%emt 0:00:32]} 24. e5 {[%emt 0:04:29]} c4 {[%emt 0:04:19]} 25. e6 {[%emt 0:08:34]} Nf6 {[%emt 0:03:09]} 26. Kh1 {[%emt 0:05:32]} Bb7 {[%emt 0:08:24]} 27. bxc4 {[%emt 0:07:43]} fxe6 {[%emt 0:04:15]} 28. Nc2 {[%emt 0:06:57]} Na4 {[%emt 0:03:28]} 29. Qd4 {[%emt 0:06:25]} Nc5 {[%emt 0:03:17]} 30. Nb3 {[%emt 0:08:57]} Nxb3 {[%emt 0:02:10]} 31. axb3 {[%emt 0:00:02]} Qxd4 {[%emt 0:00:28]} 32. Nxd4 {[%emt 0:00:01]} Rxa1 {[%emt 0:00:53]} 33. Rxa1 {[%emt 0:00:01]} exd5 {[%emt 0:01:00]} 34. Re1 {[%emt 0:02:05]} Re8 {[%emt 0:02:28]} 35. Nb5 {[%emt 0:02:20]} Kg7 {[%emt 0:03:02]} 36. Nc7 {[%emt 0:06:42]} Rc8 {[%emt 0:00:07]} 37. Nxd5 {[%emt 0:00:08]} Nxd5 {[%emt 0:02:01]} 38. Bxd5 {[%emt 0:01:51]} Bxd5+ {[%emt 0:00:05]} 39. cxd5 {[%emt 0:00:01]} Kf6 {[%emt 0:00:50]} 40. b4 {[%emt 0:00:00]} Rb8 {[%emt 0:00:00]} 41. Re6+ {[%emt 0:02:57]} Kf7 {[%emt 0:03:42]} 42. Re4 {[%emt 0:00:11]} Ra8 {[%emt 0:01:24]} 43. Rd4 {[%emt 0:00:57]} Ra2 {[%emt 0:01:33]} 44. Kg1 {[%emt 0:06:30]} h5 {[%emt 0:02:12]} 45. h3 {[%emt 0:01:15]} Kf6 {[%emt 0:02:14]} 46. g4 {[%emt 0:03:26]} h4 {[%emt 0:02:12]} 47. f5 {[%emt 0:03:28]} Ke5 {[%emt 0:08:24]} 1/2-1/2